fUSD/lending_fUSD_20240923
["ID","MTS","AMOUNT","RATE_DAILY","PERIOD"]
[338965607,1727092274889,-500.0,0.00012999,2]
[338965608,1727092274898,-500.0,0.00012999,2]
[338965609,1727092274908,-436.684724,0.00012999,2]
[338965610,1727092274917,-500.0,0.00012999,2]
[338965611,1727092274927,-500.0,0.00012999,2]
[338965612,1727092274937,-500.0,0.00012999,2]
[338965613,1727092274947,-500.0,0.00012999,2]
[338965614,1727092274957,-500.0,0.00012999,2]
[338965615,1727092274966,-500.0,0.00012999,2]
[338965616,1727092274976,-500.0,0.00012999,2]
[338965617,1727092274988,-500.0,0.00012999,2]
[338965618,1727092274998,-354.2,0.00012999,2]
[338965619,1727092275008,-500.0,0.00012999,2]
[338965620,1727092275019,-500.0,0.00012999,2]
[338965621,1727092275029,-500.0,0.00012999,2]
[338965622,1727092275039,-500.0,0.00012999,2]
[338965623,1727092275048,-500.0,0.00012999,2]
[338965624,1727092275058,-500.0,0.00012999,2]
[338965625,1727092275068,-500.0,0.00012999,2]
[338965626,1727092275077,-500.0,0.00012999,2]
[338965627,1727092275087,-500.0,0.00012999,2]
[338965628,1727092275098,-500.0,0.00012999,2]
[338965629,1727092275107,-500.0,0.00012999,2]
[338965630,1727092275118,-165.1,0.00012999,2]
[338965631,1727092275128,-405.22,0.00012999,2]
[338965632,1727092275139,-500.0,0.00012999,2]
[338965633,1727092275149,-500.0,0.00012999,2]
[338965634,1727092275159,-500.0,0.00012999,2]
[338965635,1727092275169,-500.0,0.00012999,2]
[338965636,1727092275179,-500.0,0.00012999,2]
[338965637,1727092275189,-500.0,0.00012999,2]
[338965638,1727092275199,-500.0,0.00012999,2]
[338965639,1727092275209,-500.0,0.00012999,2]
[338965640,1727092275219,-500.0,0.00012999,2]
[338965641,1727092275229,-500.0,0.00012999,2]
[338965642,1727092275240,-500.0,0.00012999,2]
[338965643,1727092275250,-500.0,0.00012999,2]
[338965644,1727092275260,-500.0,0.00012999,2]
[338965645,1727092275270,-631.07,0.00012999,2]
[338965646,1727092275280,-500.0,0.00012999,2]
[338965647,1727092275290,-500.0,0.00012999,2]
[338965648,1727092275300,-500.0,0.00012999,2]
[338965649,1727092275310,-500.0,0.00012999,2]
[338965650,1727092275319,-500.0,0.00012999,2]
[338965651,1727092275329,-410.59,0.00012999,2]
[338965652,1727092275339,-151.0,0.00012999,2]
[338965653,1727092275348,-151.0,0.00012999,2]
[338965654,1727092275358,-655201.03571729,0.00013,2]
[338965655,1727092275686,-519.07829482,0.00013,2]
[338965656,1727092275698,-4601.66309468,0.00013,2]
[338965657,1727092275714,-5779.81155884,0.00013,2]
[338965658,1727092275726,-190374.61391189,0.00013,2]
[338965659,1727092275738,-324.96367982,0.00013,2]
[338965660,1727092275906,-517.962346,0.00012438,2]
[338965661,1727092275916,-517.962346,0.00012593,2]
[338965662,1727092275926,-311.94231961,0.00012749,2]
[338965663,1727092275946,-206.02002639,0.00012749,2]
[338965664,1727092275956,-517.962346,0.00012904,2]
[338965665,1727092275966,-500.0,0.00012987,2]
[338965666,1727092275975,-500.0,0.00012995,2]
[338965667,1727092275984,-162.787,0.00012995,2]
[338965668,1727092275994,-500.0,0.00012997,2]
[338965669,1727092276003,-500.0,0.00012997,2]
[338965670,1727092276013,-500.0,0.00012998,2]
[338965671,1727092276022,-35.31088901,0.00013,2]
[338965672,1727092276043,-48184.94537627,0.00013,2]
[338965673,1727092276053,-56732.65417067,0.00013,2]
[338965674,1727092276070,-318.065,0.00012998,2]
[338965675,1727092276083,-181.935,0.00012998,2]
[338965676,1727092276093,-583.74638899,0.00013,2]
[338965677,1727092276104,-312993.2039848,0.00013,2]
[338965678,1727092276449,-341.04,0.00012895,2]
[338965679,1727092276463,-158.96,0.00012895,2]
[338965680,1727092276474,-199.64778307,0.00012988,2]
[338965681,1727092276490,-500.0,0.00012989,2]
[338965682,1727092276499,-240.14273165,0.00012996,2]
[338965683,1727092276511,-259.85726835,0.00012996,2]
[338965684,1727092276521,-500.0,0.00012998,2]
[338965685,1727092276530,-500.0,0.00012998,2]
[338965686,1727092276539,-221.22,0.00012998,2]
[338965687,1727092276549,-560.28,0.00012999,2]
[338965688,1727092276558,-1414.17682699,0.00013,2]
[338965689,1727092276569,-1513.50958767,0.00013,2]
[338965690,1727092276580,-4202.89669979,0.00013,2]
[338965691,1727092276591,-341.89467549,0.00013,2]
[338965692,1727092276602,-2541.3138532,0.00013,2]
[338965693,1727092276613,-301.616,0.00013,2]
[338965694,1727092276623,-397.66172814,0.00013,2]
[338965695,1727092276635,-308.04225998,0.00013,2]
[338965696,1727092276647,-24396.16470046,0.00013,2]
[338965697,1727092276659,-15432.68907076,0.00013,2]
[338965698,1727092276671,-2020.12,0.00013,2]
[338965699,1727092276682,-607.73158556,0.00013,2]
[338965700,1727092276693,-767.14366818,0.00013,2]
[338965701,1727092276704,-589.37436581,0.00013,2]
[338965702,1727092276716,-605.70812265,0.00013,2]
[338965703,1727092276729,-412.1753019,0.00013,2]
[338965704,1727092276744,-17459.92421963,0.00013,2]
[338965705,1727092276755,-363.33683964,0.00013,2]
[338965706,1727092276769,-382185.89899286,0.00013,2]
[338965707,1727092276780,-504.0,0.00013,2]
[338965708,1727092276790,-199.1,0.00013,2]
[338965709,1727092276799,-1602699.9710427,0.00013,2]
[338965710,1727092276811,-2136.17160078,0.00013,2]
[338965711,1727092276823,-426260.03374664,0.00013,2]
[338965712,1727092276836,-33499.91300064,0.00013,2]
[338965713,1727092276847,-607.78560835,0.00013,2]
[338965714,1727092276860,-636.87818,0.00013,2]
[338965715,1727092276873,-607.00378439,0.00013,2]
[338965716,1727092276886,-827.30933768,0.00013,2]
[338965717,1727092276898,-4697.08922901,0.00013,2]
[338965718,1727092276909,-2005.80185951,0.00013,2]
[338965719,1727092276922,-1973.28541823,0.00013,2]
[338965720,1727092276935,-305.20127118,0.00013,2]
[338965721,1727092276947,-432.89653833,0.00013,2]
[338965722,1727092276959,-1117.28317245,0.00013,2]
[338965723,1727092276970,-485.29999995,0.00013,2]
[338965724,1727092276982,-709.17,0.00013,2]
[338965725,1727092277000,-490.42957706,0.00013,2]
[338965726,1727092277011,-907.6758324,0.00013,2]
[338965727,1727092277024,-40804.69316637,0.00013,2]
[338965728,1727092277035,-4200.0,0.00013,2]
[338965729,1727092277046,-671.32315737,0.00013,2]
[338965730,1727092277057,-533.59933426,0.00013,2]
[338965731,1727092277068,-4445.23740939,0.00013,2]
[338965732,1727092277079,-3674.2143007,0.00013,2]
[338965733,1727092277091,-340.48649839,0.00013,2]
[338965734,1727092277103,-471.44131326,0.00013,2]
[338965735,1727092277114,-520.77459774,0.00013,2]
[338965736,1727092277136,-500.0,0.00012973,2]
[338965737,1727092277145,-2254.31674355,0.00013,2]
[338965738,1727092277157,-1023.82317081,0.00013,2]
[338965739,1727092277168,-505.5664408,0.00013,2]
[338965740,1727092277259,-287.094399,0.00012438,2]
[338965741,1727092277269,-162.744251,0.00012438,2]
[338965742,1727092277279,-535.41929722,0.00012988,2]
[338965743,1727092277288,-4957.17181966,0.00013,2]
[338965744,1727092277300,-8843.92475302,0.00013,2]
[338965745,1727092277311,-8650.26506283,0.00013,2]
[338965746,1727092277335,-518.4647142,0.00013,2]
[338965747,1727092277346,-3390.33831613,0.00013,2]
[338965748,1727092277357,-542.79318473,0.00013,2]
[338965749,1727092277368,-38821.87290091,0.00013,2]
[338965750,1727092277379,-1657.21148328,0.00013,2]
[338965751,1727092277390,-3107.94503315,0.00013,2]
[338965752,1727092277401,-409.86,0.00013,2]
[338965753,1727092277412,-17061.62315174,0.00013,2]
[338965754,1727092277423,-2034.76206701,0.00013,2]
[338965755,1727092277434,-8694.57112734,0.00013,2]
[338965756,1727092277445,-10018.96925061,0.00013,2]
[338965757,1727092277460,-1973.60967681,0.00013,2]
[338965758,1727092277471,-319.0,0.00013,2]
[338965759,1727092277485,-1744.32203037,0.00013,2]
[338965760,1727092277496,-417.95823573,0.00013,2]
[338965761,1727092277507,-5771.89169257,0.00013,2]
[338965762,1727092277519,-42662.56565596,0.00013,2]
[338965763,1727092277529,-329.20700671,0.00013,2]
[338965764,1727092277540,-6292.48758196,0.00013,2]
[338965765,1727092277551,-2461.2845883,0.00013,2]
[338965766,1727092277562,-189480.98509995,0.00013,2]
[338965767,1727092277574,-148713.17009898,0.00013,2]
[338965768,1727092277585,-283.49453764,0.00013,2]
[338965769,1727092277600,-516.78593165,0.00012996,3]
[338965770,1727092277611,-487.94323696,0.00012996,3]
[338965771,1727092277622,-297.09427913,0.00012996,3]
[338965772,1727092277632,-9506.91712087,0.00013,2]
[338965773,1727092277643,-459.58986104,0.00013,2]
[338965774,1727092277654,-2701.23101814,0.00013,2]
[338965775,1727092277665,-5164.28147376,0.00013,2]
[338965776,1727092277676,-261.60174887,0.00013,2]
[338965777,1727092277687,-1128.75496496,0.00013,2]
[338965778,1727092277700,-4643.55379647,0.00013,2]
[338965779,1727092277717,-2555.88000002,0.00013,2]
[338965780,1727092277729,-1089.88117537,0.00013,2]
[338965781,1727092277742,-2836.89857251,0.00013,2]
[338965782,1727092277753,-42131.55046532,0.00013,2]
[338965783,1727092277766,-4904.9682,0.00013,2]
[338965784,1727092277778,-2372.81520537,0.00013,2]
[338965785,1727092277792,-1917.4034452,0.00013,2]
[338965786,1727092277803,-1004.84499967,0.00013,2]
[338965787,1727092277814,-930.0,0.00013,2]
[338965788,1727092277826,-512.60496893,0.00013,2]
[338965789,1727092277838,-405.8537147,0.00013,2]
[338965790,1727092277856,-1301.82344774,0.00012998,3]
[338965791,1727092277866,-1033.35696431,0.00013,2]
[338965792,1727092277877,-422.91126348,0.00013,2]
[338965793,1727092277890,-547.44,0.00013,2]
[338965794,1727092277902,-1041.98334023,0.00013,2]
[338965795,1727092277914,-3168.79943377,0.00013,2]
[338965796,1727092277928,-572.08599567,0.00013,2]
[338965797,1727092277941,-92408.66220464,0.00013,2]
[338965798,1727092277954,-160032.32189795,0.00013,2]
[338965799,1727092277966,-12750.76903983,0.00013,2]
[338965800,1727092277980,-1675.74849414,0.00013,2]
[338965801,1727092277992,-770.45708517,0.00013,2]
[338965802,1727092278003,-145591.80213118,0.00013,2]
[338965803,1727092278015,-1904.96994,0.00013,2]
[338965804,1727092278027,-1207.9555414,0.00013,2]
[338965805,1727092278038,-70482.63596456,0.00013,2]
[338965806,1727092278050,-8385.9918445,0.00013,2]
[338965807,1727092278061,-1140.97488748,0.00013,2]
[338965808,1727092278073,-2763.97217333,0.00013,2]
[338965809,1727092278087,-299.07844765,0.00013,2]
[338965810,1727092278099,-5210.14308199,0.00013,2]
[338965811,1727092278111,-442.82396974,0.00013,2]
[338965812,1727092278123,-4506.63722945,0.00013,2]
[338965813,1727092278135,-858.99079704,0.00013,2]
[338965814,1727092278146,-4998.0,0.00013,2]
[338965815,1727092278158,-3213.00530478,0.00013,2]
[338965816,1727092278170,-442.89266047,0.00013,2]
[338965817,1727092278182,-69307.81672762,0.00013,2]
[338965818,1727092278193,-1626.60634085,0.00013,2]
[338965819,1727092278205,-544.14569313,0.00013,2]
[338965820,1727092278216,-448.94740468,0.00013,2]
[338965821,1727092278227,-268.25,0.00013,2]
[338965822,1727092278239,-14215.85805118,0.00013,2]
[338965823,1727092278251,-3627.57220054,0.00013,2]
[338965824,1727092278263,-430.72220257,0.00013,2]
[338965825,1727092278281,-500.0,0.00012895,2]
[338965826,1727092278291,-717.64466643,0.00013,2]
[338965827,1727092278303,-1317.17760033,0.00013,2]
[338965828,1727092278315,-1373.16223695,0.00013,2]
[338965829,1727092278326,-1264.7968584,0.00013,2]
[338965830,1727092278338,-22579.57251968,0.00013,2]
[338965831,1727092278350,-16344.51668327,0.00013,2]
[338965832,1727092278362,-3031.86817983,0.00013,2]
[338965833,1727092320967,152.87,0.00010959,2]
[338965834,1727092321949,160.59,0.00010106,2]
[338965835,1727092359624,500.0,9.35e-05,2]
[338965836,1727092360176,500.0,9.35e-05,2]
[338965837,1727092401462,500.0,0.00011961,2]
[338965838,1727092444478,1000.0,0.00011938,2]
[338965841,1727092551477,344.96,0.00011915,2]
[338965842,1727092590075,903.32,0.00011927,2]
[338965843,1727092654275,1287.81,0.00011928,2]
[338965844,1727092656441,250.0,0.00011928,2]
[338965845,1727092662898,250.0,0.00011928,2]
[338965846,1727092678479,1050.0,0.00011,2]
[338965847,1727092768808,17131.95,0.00011942,2]
[338965849,1727092846132,152.56,0.00010051,2]
[338965850,1727092846218,232.82,0.00011969,2]
[338965851,1727093006575,500.0,0.00011897,2]
[338965852,1727093011626,317.7,0.00012,2]
[338965855,1727093113248,676.03664632,0.00012,5]
[338965856,1727093161724,1323.96335368,0.00011,5]
[338965863,1727093429610,500.0,9.35e-05,2]
[338965878,1727093431458,-172.32,0.00011891,2]
[338965879,1727093431468,-754.11635877,0.00011894,2]
[338965880,1727093431512,-245.88364123,0.00011894,2]
[338965881,1727093431522,-170.10228566,0.00012,2]
[338965882,1727093431535,-836.39771434,0.00012,2]
[338965883,1727093431545,-300.0,0.000122,4]
[338965884,1727093431554,-600.0,0.000123,4]
[338965885,1727093431563,-152.56,0.00012315,2]
[338965886,1727093431573,-525.1189685,0.000124,4]
[338965887,1727093431584,-474.8810315,0.000124,4]
[338965888,1727093431593,-258.369335,0.00012438,2]
[338965889,1727093431603,-124.05434021,0.00012438,2]
[338965890,1727093431614,-61.73054979,0.00012438,2]
[338965891,1727093431624,-167.13,0.00012445,2]
[338965892,1727093431634,-1300.0,0.000125,4]
[338965893,1727093431643,-499.99,0.000125,2]
[338965894,1727093431653,-192.76440541,0.000126,4]
[338965895,1727093431679,-1507.23559459,0.000126,4]
[338965896,1727093431688,-1432.4875,0.00012676,2]
[338965897,1727093431698,-1010.03833611,0.00012676,2]
[338965898,1727093431709,-159.73166389,0.00012676,2]
[338965899,1727093431718,-4833.69233611,0.00012676,2]
[338965900,1727093431729,-17891.86766389,0.00012676,2]
[338965901,1727093431739,-300.0,0.000127,4]
[338965902,1727093431748,-1142.53387535,0.00012739,2]
[338965903,1727093431757,-421.86233158,0.00012743,2]
[338965904,1727093431767,-1000.0,0.000128,2]
[338965905,1727093431776,-300.0,0.000128,4]
[338965906,1727093431787,-898.97814287,0.00012827,2]
[338965907,1727093431797,-150.0,0.00012869,2]
[338965908,1727093432029,-300.0,0.00012869,2]
[338965909,1727093432045,-164067.93864644,0.0001287,2]
[338965910,1727093432269,-1725.29457689,0.0001287,2]
[338965911,1727093432279,-169.52189858,0.00012894,2]
[338965912,1727093432291,-500.0,0.00012896,2]
[338965913,1727093432300,-200.0,0.00012896,2]
[338965914,1727093432309,-534.66611878,0.000129,2]
[338965915,1727093432318,-358.1,0.000129,2]
[338965916,1727093432328,-150.0,0.000129,2]
[338965917,1727093432338,-298.34736095,0.000129,2]
[338965918,1727093432347,-298.34736095,0.000129,2]
[338965919,1727093432356,-185.34514207,0.000129,2]
[338965920,1727093432366,-298.34736095,0.000129,2]
[338965921,1727093432375,-298.34736095,0.000129,2]
[338965922,1727093432385,-298.34736095,0.000129,2]
[338965923,1727093432394,-298.34736095,0.000129,2]
[338965924,1727093432404,-298.34736095,0.000129,2]
[338965925,1727093432413,-298.34736095,0.000129,2]
[338965926,1727093432423,-298.34736095,0.000129,2]
[338965927,1727093432433,-298.34736095,0.000129,2]
[338965928,1727093432442,-298.34736095,0.000129,2]
[338965929,1727093432451,-298.34736095,0.000129,2]
[338965930,1727093432461,-298.34736095,0.000129,2]
[338965931,1727093432471,-298.34736095,0.000129,2]
[338965932,1727093432480,-298.34736095,0.000129,2]
[338965933,1727093432490,-298.34736095,0.000129,2]
[338965934,1727093432499,-298.34736095,0.000129,2]
[338965935,1727093432509,-298.34736095,0.000129,2]
[338965936,1727093432518,-298.34736095,0.000129,2]
[338965937,1727093432528,-298.84,0.000129,2]
[338965938,1727093432539,-165.32914875,0.000129,2]
[338965939,1727093432549,-165.32914875,0.000129,2]
[338965940,1727093432558,-165.32914875,0.000129,2]
[338965941,1727093432568,-165.32914875,0.000129,2]
[338965942,1727093432578,-165.32914875,0.000129,2]
[338965943,1727093432587,-165.82,0.000129,2]
[338965944,1727093432597,-157.62824136,0.000129,2]
[338965945,1727093432607,-157.62824136,0.000129,2]
[338965946,1727093432616,-157.62824136,0.000129,2]
[338965947,1727093432625,-157.62824136,0.000129,2]
[338965948,1727093432635,-157.62824136,0.000129,2]
[338965949,1727093432645,-157.62824136,0.000129,2]
[338965950,1727093432655,-157.62824136,0.000129,2]
[338965951,1727093432664,-158.12,0.000129,2]
[338965952,1727093432674,-300.0,0.000129,4]
[338965953,1727093432683,-162.787,0.000129,2]
[338965954,1727093432693,-210.03657204,0.000129,2]
[338965955,1727093432705,-256.41264469,0.000129,2]
[338965956,1727093432716,-1891.35794289,0.000129,2]
[338965957,1727093432725,-400.0,0.0001297,2]
[338965958,1727093432735,-500.0,0.00012973,2]
[338965959,1727093432744,-500.0,0.00012973,2]
[338965960,1727093432753,-500.0,0.00012973,2]
[338965961,1727093432762,-150.0,0.00012979,2]
[338965962,1727093432771,-187.079,0.00012979,2]
[338965963,1727093432781,-151.35,0.00012986,2]
[338965964,1727093432790,-500.0,0.00012986,2]
[338965965,1727093432799,-500.0,0.00012986,2]
[338965966,1727093432809,-151.35,0.00012987,2]
[338965967,1727093432818,-500.0,0.00012987,2]
[338965968,1727093432827,-288.01820371,0.00012987,2]
[338965969,1727093432837,-867.02,0.00012987,2]
[338965970,1727093432846,-500.0,0.00012987,2]
[338965971,1727093432855,-178.3048534,0.00012987,2]
[338965972,1727093432871,-321.6951466,0.00012987,2]
[338965973,1727093432880,-452.5948524,0.00012987,2]
[338965974,1727093432892,-47.4051476,0.00012987,2]
[338965975,1727093432901,-500.0,0.00012987,2]
[338965976,1727093432910,-356.51499119,0.00012987,2]
[338965977,1727093432921,-143.48500881,0.00012987,2]
[338965978,1727093432931,-310.73893654,0.00012987,2]
[338965979,1727093432942,-189.26106346,0.00012987,2]
[338965980,1727093432951,-500.0,0.00012987,2]
[338965981,1727093432960,-37.41639766,0.00012987,2]
[338965982,1727093432972,-462.58360234,0.00012987,2]
[338965983,1727093432981,-500.0,0.00012987,2]
[338965984,1727093432991,-500.0,0.00012987,2]
[338965985,1727093433000,-500.0,0.00012987,2]
[338965986,1727093433009,-337.41639766,0.00012987,2]
[338965987,1727093433021,-162.58360234,0.00012987,2]
[338965988,1727093433030,-500.0,0.00012987,2]
[338965989,1727093433044,-500.0,0.00012987,2]
[338965990,1727093433054,-755.54,0.00012987,2]
[338965991,1727093433070,-500.0,0.00012987,2]
[338965992,1727093433079,-500.0,0.00012987,2]
[338965993,1727093433088,-500.0,0.00012987,2]
[338965994,1727093433098,-500.0,0.00012987,2]
[338965995,1727093433107,-500.0,0.00012987,2]
[338965996,1727093433116,-500.0,0.00012987,2]
[338965997,1727093433125,-500.0,0.00012987,2]
[338965998,1727093433134,-187.0820708,0.00012987,2]
[338965999,1727093433146,-312.9179292,0.00012987,2]
[338966000,1727093433156,-500.0,0.00012987,2]
[338966001,1727093433165,-498.0,0.00012988,2]
[338966002,1727093433174,-500.0,0.00012988,2]
[338966003,1727093433184,-341.03120705,0.00012988,2]
[338966004,1727093433193,-148.05086375,0.00012988,2]
[338966005,1727093433204,-351.94913625,0.00012988,2]
[338966006,1727093433213,-500.0,0.00012988,2]
[338966007,1727093433222,-2.85970573,0.00012988,2]
[338966008,1727093433234,-408.28637113,0.00012988,2]
[338966009,1727093433244,-500.0,0.00012988,2]
[338966010,1727093433255,-500.0,0.00012988,2]
[338966011,1727093433265,-500.0,0.00012988,2]
[338966012,1727093433274,-500.0,0.00012988,2]
[338966013,1727093433285,-500.0,0.00012988,2]
[338966014,1727093433298,-500.0,0.00012988,2]
[338966015,1727093433307,-516.01930823,0.00012988,2]
[338966016,1727093433316,-500.0,0.00012988,2]
[338966017,1727093433326,-500.0,0.00012988,2]
[338966018,1727093433336,-500.0,0.00012988,2]
[338966019,1727093433346,-151.35,0.00012988,2]
[338966020,1727093433356,-266.821,0.00012991,2]
[338966021,1727093433365,-225.425,0.00012991,2]
[338966022,1727093433375,-500.0,0.00012992,2]
[338966023,1727093433386,-500.0,0.00012992,2]
[338966024,1727093433396,-30.32566647,0.00012993,2]
[338966025,1727093437625,-484.0774728,0.00012992,2]
[338966027,1727093437637,-15.9225272,0.00012992,2]
[338966029,1727093437646,-500.0,0.00012992,2]
[338966030,1727093437656,-1484.0774728,0.00012993,2]
[338966034,1727093437734,-543.8425272,0.00012993,2]
[338966036,1727093437745,-500.0,0.00012993,2]
[338966037,1727093437755,-500.0,0.00012993,2]
[338966038,1727093437764,-3830.19,0.00012993,2]
[338966039,1727093437773,-11626.38,0.00012993,2]
[338966040,1727093437782,-500.0,0.00012993,2]
[338966041,1727093437793,-2816.21,0.00012993,2]
[338966042,1727093437803,-491.84256658,0.00012993,2]
[338966043,1727093437811,-1849.64,0.00012993,2]
[338966044,1727093437821,-8873.14,0.00012993,2]
[338966045,1727093437830,-500.0,0.00012993,2]
[338966046,1727093437839,-925.45,0.00012993,2]
[338966047,1727093437848,-11389.84,0.00012993,2]
[338966048,1727093437857,-1380.27,0.00012993,2]
[338966049,1727093437867,-716.98,0.00012993,2]
[338966050,1727093437877,-3249.57,0.00012993,2]
[338966051,1727093437886,-2523.47,0.00012993,2]
[338966052,1727093437895,-765.55,0.00012993,2]
[338966053,1727093437904,-500.0,0.00012993,2]
[338966054,1727093437913,-5224.78,0.00012993,2]
[338966055,1727093437922,-500.0,0.00012993,2]
[338966056,1727093437931,-500.0,0.00012993,2]
[338966057,1727093437940,-1050.3,0.00012993,2]
[338966058,1727093437950,-500.0,0.00012993,2]
[338966059,1727093437959,-2489.77,0.00012993,2]
[338966060,1727093437968,-500.0,0.00012993,2]
[338966061,1727093437978,-500.0,0.00012994,2]
[338966062,1727093437987,-169.57347111,0.00012994,2]
[338966063,1727093437996,-500.0,0.00012994,2]
[338966064,1727093438005,-500.0,0.00012994,2]
[338966065,1727093438015,-500.0,0.00012994,2]
[338966066,1727093438024,-500.0,0.00012994,2]
[338966067,1727093438033,-500.0,0.00012994,2]
[338966068,1727093438044,-500.0,0.00012994,2]
[338966069,1727093438054,-500.0,0.00012994,2]
[338966070,1727093438063,-500.0,0.00012994,2]
[338966071,1727093438072,-500.0,0.00012994,2]
[338966072,1727093438081,-500.0,0.00012994,2]
[338966073,1727093438091,-500.0,0.00012994,2]
[338966074,1727093438101,-500.0,0.00012994,2]
[338966075,1727093438113,-500.0,0.00012994,2]
[338966076,1727093438122,-500.0,0.00012994,2]
[338966077,1727093438131,-500.0,0.00012994,2]
[338966078,1727093438140,-500.0,0.00012994,2]
[338966079,1727093438152,-500.0,0.00012994,2]
[338966080,1727093438162,-500.0,0.00012994,2]
[338966083,1727093438172,-500.0,0.00012994,2]
[338966085,1727093438182,-521.2,0.00012994,2]
[338966088,1727093438191,-1001.19,0.00012994,2]
[338966091,1727093438200,-597.62537292,0.00012994,2]
[338966093,1727093438210,-500.0,0.00012994,2]
[338966095,1727093438220,-500.0,0.00012994,2]
[338966097,1727093438231,-500.0,0.00012994,2]
[338966099,1727093438241,-500.0,0.00012994,2]
[338966101,1727093438250,-500.0,0.00012994,2]
[338966103,1727093438260,-500.0,0.00012994,2]
[338966105,1727093438271,-500.0,0.00012994,2]
[338966107,1727093438280,-500.0,0.00012994,2]
[338966109,1727093438290,-500.0,0.00012994,2]
[338966111,1727093438299,-500.0,0.00012994,2]
[338966113,1727093438308,-508.81164687,0.00012994,2]
[338966115,1727093438318,-1229.1,0.00012994,2]
[338966117,1727093438328,-500.0,0.00012994,2]
[338966119,1727093438337,-500.0,0.00012994,2]
[338966121,1727093438348,-500.0,0.00012994,2]
[338966123,1727093438358,-500.0,0.00012994,2]
[338966125,1727093438367,-2609.15,0.00012994,2]
[338966127,1727093438376,-500.0,0.00012994,2]
[338966128,1727093438386,-1849.68,0.00012994,2]
[338966129,1727093438395,-500.0,0.00012994,2]
[338966130,1727093438405,-500.0,0.00012994,2]
[338966131,1727093438414,-500.0,0.00012994,2]
[338966132,1727093438423,-500.0,0.00012994,2]
[338966133,1727093438432,-1746.05,0.00012994,2]
[338966134,1727093438442,-500.0,0.00012994,2]
[338966135,1727093438452,-500.0,0.00012994,2]
[338966136,1727093438461,-500.0,0.00012994,2]
[338966137,1727093438470,-500.0,0.00012994,2]
[338966138,1727093438480,-1692.26,0.00012994,2]
[338966139,1727093438490,-500.0,0.00012994,2]
[338966140,1727093438499,-500.0,0.00012994,2]
[338966141,1727093438509,-540.06,0.00012994,2]
[338966142,1727093438519,-500.0,0.00012994,2]
[338966143,1727093438528,-1085.37,0.00012994,2]
[338966144,1727093438537,-500.0,0.00012994,2]
[338966145,1727093438547,-1086.48,0.00012994,2]
[338966146,1727093438557,-500.0,0.00012994,2]
[338966147,1727093438568,-157.92023083,0.00012994,2]
[338966148,1727093438577,-500.0,0.00012994,2]
[338966149,1727093438587,-1079.35,0.00012994,2]
[338966150,1727093438596,-500.0,0.00012994,2]
[338966151,1727093438605,-500.0,0.00012994,2]
[338966152,1727093438614,-757.43,0.00012994,2]
[338966153,1727093438623,-979.77,0.00012994,2]
[338966154,1727093438633,-500.0,0.00012994,2]
[338966155,1727093438642,-775.12,0.00012994,2]
[338966156,1727093438651,-500.0,0.00012994,2]
[338966157,1727093438661,-500.0,0.00012994,2]
[338966158,1727093438670,-500.0,0.00012994,2]
[338966159,1727093438679,-500.0,0.00012994,2]
[338966160,1727093438687,-500.0,0.00012994,2]
[338966161,1727093438697,-500.0,0.00012994,2]
[338966162,1727093438706,-500.0,0.00012994,2]